Workbook

Sheet Sheet1
A1: z | B1: ST(z)
A2: -5 | B2: =(1/SQRT(2*PI()))*EXP(-(A2^2/2)) -> 1.486719515e-06 | C2: =_xlfn.GAMMA.DIST(3+A2,2,2,FALSE) ->  | D2: =C2*A2 -> 
A3: -4.9 | B3: =(1/SQRT(2*PI()))*EXP(-(A3^2/2)) -> 2.438960746e-06 | C3: =_xlfn.GAMMA.DIST(3+A3,2,2,FALSE) ->  | D3: =C3*A3 -> 
A4: -4.8 | B4: 3.961299091e-06
A5: -4.7 | B5: 6.369825179e-06
A6: -4.6 | B6: 1.014085207e-05
A7: -4.5 | B7: 1.598374111e-05
A8: -4.4 | B8: 2.494247129e-05
A9: -4.3 | B9: 3.853519674e-05
A10: -4.2 | B10: 5.894306776e-05
A11: -4.1 | B11: 8.926165718e-05
A12: -4 | B12: 0.0001338302258 | D12: =C12*(4+A12) -> 
A13: -3.9 | B13: 0.0001986554714 | D13: =C13*(4+A13) -> 
A14: -3.8 | B14: 0.0002919469258
A15: -3.7 | B15: 0.0004247802706
A16: -3.6 | B16: 0.0006119019301
A17: -3.5 | B17: 0.000872682695
A18: -3.4 | B18: 0.001232219168
A19: -3.3 | B19: 0.001722568939 | K19: lo | M19: =K20-M22 -> 39.36403791 | N19: -0.9
A20: -3.2 | B20: 0.002384088201 | K20: =NORMINV(RAND(),50,13) -> 45.36403791 | M20: =K20 -> 45.36403791 | N20: -0.9
A21: -3.1 | B21: 0.003266819056 | K21: hi | M21: =K20+M22 -> 51.36403791 | N21: -0.9
A22: -3 | B22: 0.004431848412 | D22: =C22*(3+A22) ->  | M22: 6
A23: -2.9 | B23: 0.00595253242 | C23: 0.02378073561 | D23: =C23*(3+A23) -> 0.002378073561
A24: -2.8 | B24: 0.007915451583 | C24: 0.0452418709 | D24: 0.00904837418 | K24: Confidence - O - Meter!
A25: -2.7 | B25: 0.01042093481 | C25: 0.06455309823 | D25: 0.01936592947 | G25: Did interval "catch" the average? | H25: =IF(AND(M19<50,M21>50),"Yes!","No.") -> Yes!
A26: -2.6 | B26: 0.01358296923 | C26: 0.08187307531 | D26: 0.03274923012 | G26: Cumulative Probability ("Confidence") | H26: =I29/I31 -> 0.6
A27: -2.5 | B27: 0.01752830049 | C27: 0.09735009788 | D27: 0.04867504894
A28: -2.4 | B28: 0.02239453029 | C28: 0.1111227331 | D28: 0.06667363986 | H28: current | I28: cumulative
A29: -2.3 | B29: 0.02832703774 | C29: 0.1233204157 | D29: 0.08632429099 | G29: Yes! | H29: =COUNTIF(H25,"Yes!") -> 1 | I29: =IF(H29=1,I29+1,I29) -> 4
A30: -2.2 | B30: 0.03547459285 | C30: 0.1340640092 | D30: 50.65 | E30: -0.6 | G30: No! | H30: =COUNTIF(H25,"No.") -> 0 | I30: =IF(H30=1,I30+1,I30) -> 2
A31: -2.1 | B31: 0.04398359598 | C31: 0.1434663341 | D31: 50.65 | E31: 1.5 | I31: =SUM(I29:I30) -> 6
A32: -2 | B32: 0.05399096651 | C32: 0.1516326649 | D32: 0.1516326649
A33: -1.9 | B33: 0.06561581477 | C33: 0.1586611979 | D33: 0.1745273176
A34: -1.8 | B34: 0.0789501583 | C34: 0.1646434908 | D34: 0.197572189
A35: -1.7 | B35: 0.09404907738 | C35: 0.1696648774 | D35: 0.2205643407
A36: -1.6 | B36: 0.1109208347 | C36: 0.1738048563 | D36: 0.2433267989
A37: -1.5 | B37: 0.1295175957 | C37: 0.1771374573 | D37: 0.2657061859
A38: -1.4 | B38: 0.1497274656 | C38: 0.1797315856 | D38: 0.287570537
A39: -1.3 | B39: 0.171368592 | C39: 0.1816513461 | D39: 0.3088072883
A40: -1.2 | B40: 0.194186055 | C40: 0.1829563469 | D40: 0.3293214244
A41: -1.1 | B41: 0.217852177 | C41: 0.1837019861 | D41: 0.3490337737
A42: -1 | B42: 0.2419707245 | C42: 0.1839397206 | D42: 0.3678794412
A43: -0.9 | B43: 0.2660852499 | C43: 0.1837173183 | D43: 0.3858063684
A44: -0.8 | B44: 0.2896915528 | C44: 0.183079096 | D44: 0.4027740113
A45: -0.7 | B45: 0.3122539334 | C45: 0.1820661424 | D45: 0.4187521275
A46: -0.6 | B46: 0.3332246029 | C46: 0.1807165271 | D46: 0.4337196652
A47: -0.5 | B47: 0.3520653268 | C47: 0.179065498 | D47: 0.4476637451
A48: -0.4 | B48: 0.3682701403 | C48: 0.1771456655 | D48: 0.4605787302
A49: -0.3 | B49: 0.3813878155 | C49: 0.1749871759 | D49: 0.472465375
A50: -0.2 | B50: 0.391042694 | C50: 0.1726178748 | D50: 0.4833300493
A51: -0.1 | B51: 0.3969525475 | C51: 0.1700634589 | D51: 0.4931840307
A52: 0 | B52: 0.3989422804 | C52: 0.1673476201 | D52: 0.5020428603
A53: 0.1 | B53: 0.3969525475 | C53: 0.1644921797 | D53: 0.5099257571
A54: 0.2 | B54: 0.391042694 | C54: 0.1615172144 | D54: 0.5168550861
A55: 0.3 | B55: 0.3813878155 | C55: 0.1584411746 | D55: 0.5228558762
A56: 0.4 | B56: 0.3682701403 | C56: 0.1552809954 | D56: 0.5279553845
A57: 0.5 | B57: 0.3520653268 | C57: 0.1520522005 | D57: 0.5321827018
A58: 0.6 | B58: 0.3332246029 | C58: 0.1487689994 | D58: 0.5355683978
A59: 0.7 | B59: 0.3122539334 | C59: 0.1454443788 | D59: 0.5381442017
A60: 0.8 | B60: 0.2896915528 | C60: 0.1420901883 | D60: 0.5399427154
A61: 0.9 | B61: 0.2660852499 | C61: 0.1387172198 | D61: 0.5409971572
A62: 1 | B62: 0.2419707245 | C62: 0.1353352832 | D62: 0.5413411329
A63: 1.1 | B63: 0.217852177 | C63: 0.1319532762 | D63: 0.5410084323
A64: 1.2 | B64: 0.194186055 | C64: 0.1285792497 | D64: 0.5400328486
A65: 1.3 | B65: 0.171368592 | C65: 0.1252204696 | D65: 0.5384480193
A66: 1.4 | B66: 0.1497274656 | C66: 0.1218834742 | D66: 0.5362872865
A67: 1.5 | B67: =(1/SQRT(2*PI()))*EXP(-(A67^2/2)) -> 0.1295175957 | C67: =_xlfn.GAMMA.DIST(3+A67,2,2,FALSE) -> 0.1185741276 | D67: 0.5335835743
A68: 1.6 | B68: 0.1109208347 | C68: 0.1152976703 | D68: 0.5303692833
A69: 1.7 | B69: 0.09404907738 | C69: 0.1120587656 | D69: 0.5266761983
A70: 1.8 | B70: 0.0789501583 | C70: 0.1088615439 | D70: 0.5225354109
A71: 1.9 | B71: 0.06561581477 | C71: 0.1057096435 | D71: 0.517977253
A72: 2 | B72: 0.05399096651 | C72: 0.1026062483 | D72: 0.5130312414
A73: 2.1 | B73: 0.04398359598 | C73: 0.09955412415 | D73: 0.5077260332
A74: 2.2 | B74: 0.03547459285 | C74: 0.09655565168 | D74: 0.5020893887
A75: 2.3 | B75: 0.02832703774 | C75: 0.09361285731 | D75: 0.4961481437
A76: 2.4 | B76: 0.02239453029 | C76: 0.0907274422 | D76: 0.4899281879
A77: 2.5 | B77: 0.01752830049 | C77: 0.08790080916 | D77: 0.4834544504
A78: 2.6 | B78: 0.01358296923 | C78: 0.08513408768 | D78: 0.476750891
A79: 2.7 | B79: 0.01042093481 | C79: 0.08242815725 | D79: 0.4698404963
A80: 2.8 | B80: 0.007915451583 | C80: 0.07978366908 | D80: 0.4627452807
A81: 2.9 | B81: 0.00595253242 | C81: 0.07720106627 | D81: 0.455486291
A82: 3 | B82: 0.004431848412 | C82: 0.07468060255 | D82: 0.4480836153
A83: 3.1 | B83: 0.003266819056 | C83: 0.0722223597 | D83: 0.4405563941
A84: 3.2 | B84: 0.002384088201 | C84: 0.06982626371 | D84: 0.432922835
A85: 3.3 | B85: 0.001722568939 | C85: 0.06749209982 | D85: 0.4252002288
A86: 3.4 | B86: 0.001232219168 | C86: 0.06521952637 | D86: 0.4174049687
A87: 3.5 | B87: 0.000872682695 | C87: 0.06300808773 | D87: =C87*(3+A87) -> 0.4095525702
A88: 3.6 | B88: 0.0006119019301 | C88: 0.06085722621 | D88: 0.401657693
A89: 3.7 | B89: 0.0004247802706 | C89: 0.05876629312 | D89: 0.3937341639
A90: 3.8 | B90: 0.0002919469258 | C90: 0.05673455893 | D90: 0.3857950007
A91: 3.9 | B91: 0.0001986554714 | C91: 0.05476122275 | D91: 0.377852437
A92: 4 | B92: 0.0001338302258 | C92: 0.05284542099 | D92: 0.3699179469
A93: 4.1 | B93: 8.926165718e-05 | C93: 0.05098623539 | D93: 0.3620022712
A94: 4.2 | B94: 5.894306776e-05 | C94: 0.04918270041 | D94: 0.3541154429
A95: 4.3 | B95: 3.853519674e-05 | C95: 0.04743381002 | D95: 0.3462668132
A96: 4.4 | B96: 2.494247129e-05 | C96: 0.04573852397 | D96: 0.3384650774
A97: 4.5 | B97: 1.598374111e-05 | C97: 0.04409577348 | D97: 0.3307183011
A98: 4.6 | B98: 1.014085207e-05 | C98: 0.04250446653 | D98: 0.3230339456
A99: 4.7 | B99: 6.369825179e-06 | C99: 0.04096349264 | D99: 0.3154188934
A100: 4.8 | B100: 3.961299091e-06 | C100: 0.03947172732 | D100: 0.3078794731
A101: 4.9 | B101: 2.438960746e-06 | C101: 0.03802803601 | D101: 0.3004214845
A102: 5 | B102: 1.486719515e-06 | C102: 0.03663127778 | D102: 0.2930502222
D103: =SUM(D23:D102) -> 131.6854104

Sheet Sheet2

Sheet Sheet3
